[Event "Betsys MČR v online bleskovém šachu 2021"]
[Site "Chess.com"]
[Date "2021.04.17"]
[Round "3"]
[White "RomanHlavicka"]
[Black "LightningAttack_2000"]
[Result "0-1"]
[WhiteElo "1515"]
[BlackElo "1903"]
[TimeControl "180+1"]
[EndTime "9:24:12 PDT"]
[Termination "Uživatel LightningAttack_2000 zvítězil po vzdání soupeře"]

1. e4 {[%clk 0:03:00.9]} 1... c5 {[%clk 0:02:59.7]} 2. Nf3 {[%clk 0:03:00.3]}
2... e6 {[%clk 0:02:59.6]} 3. d4 {[%clk 0:03:00.3]} 3... cxd4 {[%clk 0:02:59.9]}
4. Nxd4 {[%clk 0:03:00.4]} 4... a6 {[%clk 0:03:00.2]} 5. Nc3 {[%clk 0:03:00.3]}
5... Qc7 {[%clk 0:03:00]} 6. Bd3 {[%clk 0:02:59.2]} 6... Nc6 {[%clk 0:02:59.8]}
7. Be3 {[%clk 0:02:57.1]} 7... Nf6 {[%clk 0:02:58.6]} 8. O-O {[%clk 0:02:53.8]}
8... Be7 {[%clk 0:02:58.4]} 9. f3 {[%clk 0:02:54]} 9... O-O {[%clk 0:02:57.4]}
10. a3 {[%clk 0:02:52.3]} 10... Rd8 {[%clk 0:02:55.8]} 11. Qe2 {[%clk
0:02:46.3]} 11... d5 {[%clk 0:02:53.8]} 12. exd5 {[%clk 0:02:39.1]} 12... Nxd5
{[%clk 0:02:53.6]} 13. Nxd5 {[%clk 0:02:38.2]} 13... Rxd5 {[%clk 0:02:53.4]} 14.
Nxc6 {[%clk 0:02:29.4]} 14... bxc6 {[%clk 0:02:52.3]} 15. Be4 {[%clk 0:02:22.8]}
15... Rd8 {[%clk 0:02:51.6]} 16. Rad1 {[%clk 0:02:21.3]} 16... Bb7 {[%clk
0:02:51.3]} 17. Qf2 {[%clk 0:02:10.6]} 17... c5 {[%clk 0:02:46.2]} 18. Bxb7
{[%clk 0:02:05.9]} 18... Qxb7 {[%clk 0:02:46.3]} 19. Rfe1 {[%clk 0:02:00.9]}
19... Qxb2 {[%clk 0:02:42.7]} 20. a4 {[%clk 0:01:48.4]} 20... Qb4 {[%clk
0:02:37.5]} 21. Rb1 {[%clk 0:01:37.1]} 21... Qxa4 {[%clk 0:02:36]} 22. Bxc5
{[%clk 0:01:37]} 22... Bxc5 {[%clk 0:02:35.4]} 23. Qxc5 {[%clk 0:01:36.4]} 23...
Rdc8 {[%clk 0:02:35.1]} 24. Qb4 {[%clk 0:01:16]} 24... Qxc2 {[%clk 0:02:32.4]}
25. Rec1 {[%clk 0:01:10.5]} 25... Qxc1+ {[%clk 0:02:31.9]} 26. Rxc1 {[%clk
0:01:10.3]} 26... Rxc1+ {[%clk 0:02:31.5]} 27. Kf2 {[%clk 0:01:09.3]} 27... Rac8
{[%clk 0:02:31.5]} 28. Qd6 {[%clk 0:01:05.5]} 28... R1c6 {[%clk 0:02:30.2]} 29.
Qd3 {[%clk 0:01:04.4]} 29... a5 {[%clk 0:02:26.2]} 30. Qb5 {[%clk 0:01:03.5]}
30... Rc5 {[%clk 0:02:25.8]} 31. Qa4 {[%clk 0:00:59.6]} 31... h6 {[%clk
0:02:23.1]} 32. Kg3 {[%clk 0:00:59]} 32... Kh7 {[%clk 0:02:22.8]} 33. Kg4 {[%clk
0:00:57.9]} 33... Rc4+ {[%clk 0:02:21.8]} 0-1

[Event "Betsys MČR v online bleskovém šachu 2021"]
[Site "Chess.com"]
[Date "2021.04.17"]
[Round "3"]
[White "Naty139"]
[Black "Dan1612"]
[Result "0-1"]
[WhiteElo "2259"]
[BlackElo "2006"]
[TimeControl "180+1"]
[EndTime "9:24:13 PDT"]
[Termination "Uživatel Dan1612 zvítězil po vzdání soupeře"]

1. e4 {[%clk 0:03:00.9]} 1... c5 {[%clk 0:02:56.3]} 2. Nf3 {[%clk 0:03:00.8]}
2... Nc6 {[%clk 0:02:56.1]} 3. Bb5 {[%clk 0:02:56.3]} 3... g6 {[%clk 0:02:53.9]}
4. Bxc6 {[%clk 0:02:55.1]} 4... dxc6 {[%clk 0:02:54.4]} 5. h3 {[%clk 0:02:55.1]}
5... Bg7 {[%clk 0:02:54.5]} 6. d3 {[%clk 0:02:55.6]} 6... Nf6 {[%clk 0:02:54.9]}
7. Nc3 {[%clk 0:02:55.5]} 7... O-O {[%clk 0:02:53.4]} 8. Be3 {[%clk 0:02:55.8]}
8... b6 {[%clk 0:02:51.6]} 9. Qd2 {[%clk 0:02:56.2]} 9... Re8 {[%clk 0:02:49.5]}
10. Bh6 {[%clk 0:02:56]} 10... Bh8 {[%clk 0:02:49.8]} 11. O-O-O {[%clk
0:02:55.8]} 11... b5 {[%clk 0:02:50.4]} 12. e5 {[%clk 0:02:49.2]} 12... Nd5
{[%clk 0:02:49.9]} 13. Ne4 {[%clk 0:02:49.2]} 13... b4 {[%clk 0:02:39.8]} 14.
Nxc5 {[%clk 0:02:43.2]} 14... Qa5 {[%clk 0:02:39.6]} 15. Kb1 {[%clk 0:02:29.6]}
15... Qxc5 {[%clk 0:02:39.1]} 16. d4 {[%clk 0:02:28.3]} 16... Qc4 {[%clk
0:02:35.3]} 17. h4 {[%clk 0:02:25.1]} 17... Nc3+ {[%clk 0:02:35.5]} 18. bxc3
{[%clk 0:02:19.5]} 18... bxc3 {[%clk 0:02:35.5]} 19. Qc1 {[%clk 0:02:16.8]}
19... Rb8+ {[%clk 0:02:32]} 20. Ka1 {[%clk 0:02:16.1]} 20... Rb2 {[%clk
0:02:32.6]} 21. Qxb2 {[%clk 0:02:14.9]} 21... cxb2+ {[%clk 0:02:32.9]} 22. Kxb2
{[%clk 0:02:05.5]} 22... Be6 {[%clk 0:02:32.7]} 23. Kc1 {[%clk 0:02:05.2]} 23...
Qxa2 {[%clk 0:02:32.1]} 24. h5 {[%clk 0:02:04.7]} 24... Rb8 {[%clk 0:02:27.5]}
25. Kd2 {[%clk 0:02:03.1]} 25... Rb2 {[%clk 0:02:27.2]} 26. Rc1 {[%clk
0:02:02.9]} 26... Qa5+ {[%clk 0:02:27.5]} 27. Ke3 {[%clk 0:01:52.8]} 27... Qc3+
{[%clk 0:02:27.7]} 28. Kf4 {[%clk 0:01:51.9]} 28... Rxc2 {[%clk 0:02:25.5]} 29.
Rxc2 {[%clk 0:01:49.7]} 29... Qxc2 {[%clk 0:02:25.9]} 30. hxg6 {[%clk
0:01:49.2]} 30... Qf5+ {[%clk 0:02:22.5]} 31. Ke3 {[%clk 0:01:48.5]} 31... fxg6
{[%clk 0:02:22.9]} 32. Nd2 {[%clk 0:01:39.7]} 32... c5 {[%clk 0:02:21.6]} 33.
dxc5 {[%clk 0:01:31.8]} 33... Qxe5+ {[%clk 0:02:20.8]} 34. Kd3 {[%clk 0:01:30]}
34... Bf5+ {[%clk 0:02:19.8]} 35. Kc4 {[%clk 0:01:29.4]} 35... Qd4+ {[%clk
0:02:18.8]} 36. Kb5 {[%clk 0:01:29.5]} 36... Bd3+ {[%clk 0:02:18.4]} 37. Kc6
{[%clk 0:01:28.9]} 37... Qa4+ {[%clk 0:02:15.8]} 38. Kc7 {[%clk 0:01:24.8]}
38... Be5+ {[%clk 0:02:16.1]} 39. Kd8 {[%clk 0:01:24.8]} 39... Bf5 {[%clk
0:02:13]} 0-1

[Event "Betsys MČR v online bleskovém šachu 2021"]
[Site "Chess.com"]
[Date "2021.04.17"]
[Round "3"]
[White "Maldaj"]
[Black "Tynano"]
[Result "1-0"]
[WhiteElo "2407"]
[BlackElo "2141"]
[TimeControl "180+1"]
[EndTime "9:24:30 PDT"]
[Termination "Uživatel Maldaj zvítězil po vzdání soupeře"]

1. e4 {[%clk 0:03:00.9]} 1... e5 {[%clk 0:02:59.8]} 2. Nf3 {[%clk 0:03:01]} 2...
Nc6 {[%clk 0:02:58.9]} 3. Bc4 {[%clk 0:03:00.7]} 3... Nf6 {[%clk 0:02:51.7]} 4.
d3 {[%clk 0:03:00.9]} 4... Be7 {[%clk 0:02:48.5]} 5. O-O {[%clk 0:02:58.6]} 5...
O-O {[%clk 0:02:48]} 6. Re1 {[%clk 0:02:58.9]} 6... d6 {[%clk 0:02:43.7]} 7. c3
{[%clk 0:02:59]} 7... Na5 {[%clk 0:02:42.2]} 8. Bb5 {[%clk 0:02:59.4]} 8... a6
{[%clk 0:02:40.9]} 9. Ba4 {[%clk 0:02:59.9]} 9... b5 {[%clk 0:02:41.4]} 10. Bc2
{[%clk 0:03:00.3]} 10... c5 {[%clk 0:02:41.7]} 11. Nbd2 {[%clk 0:03:00.6]} 11...
Qc7 {[%clk 0:02:40]} 12. Nf1 {[%clk 0:03:00.9]} 12... Nc6 {[%clk 0:02:39.7]} 13.
Ng3 {[%clk 0:03:00.6]} 13... h6 {[%clk 0:02:36.9]} 14. Nh4 {[%clk 0:02:58.5]}
14... Re8 {[%clk 0:02:35.8]} 15. Nhf5 {[%clk 0:02:58.5]} 15... Bf8 {[%clk
0:02:35.5]} 16. Qf3 {[%clk 0:02:58.2]} 16... Nh7 {[%clk 0:02:15.8]} 17. Nh5
{[%clk 0:02:54.3]} 17... Ng5 {[%clk 0:01:39.1]} 18. Qg3 {[%clk 0:02:49.7]} 18...
Bxf5 {[%clk 0:01:29.4]} 19. exf5 {[%clk 0:02:50.6]} 19... Kh8 {[%clk 0:00:56.1]}
20. Bxg5 {[%clk 0:02:42.9]} 20... hxg5 {[%clk 0:00:57]} 21. Qxg5 {[%clk
0:02:42.7]} 21... d5 {[%clk 0:00:52.7]} 22. Re3 {[%clk 0:02:37.4]} 22... Qd8
{[%clk 0:00:46.8]} 23. f6 {[%clk 0:02:32.3]} 23... g6 {[%clk 0:00:43.3]} 24. Rh3
{[%clk 0:02:31.8]} 24... Kg8 {[%clk 0:00:43]} 25. d4 {[%clk 0:02:24.6]} 25... e4
{[%clk 0:00:41.1]} 26. Nf4 {[%clk 0:02:23.9]} 26... Bg7 {[%clk 0:00:38.9]} 27.
Nxd5 {[%clk 0:02:19.2]} 27... Bh8 {[%clk 0:00:33.6]} 28. Rxh8+ {[%clk
0:02:17.7]} 1-0

[Event "Betsys MČR v online bleskovém šachu 2021"]
[Site "Chess.com"]
[Date "2021.04.17"]
[Round "3"]
[White "TTCZ"]
[Black "Hroch_Hippo"]
[Result "1-0"]
[WhiteElo "1481"]
[BlackElo "1077"]
[TimeControl "180+1"]
[EndTime "9:24:30 PDT"]
[Termination "Uživatel TTCZ zvítězil matem"]

1. e4 {[%clk 0:03:00.9]} 1... e5 {[%clk 0:02:59.2]} 2. Nc3 {[%clk 0:02:56.7]}
2... Bc5 {[%clk 0:02:56]} 3. f4 {[%clk 0:02:56.2]} 3... exf4 {[%clk 0:02:55.5]}
4. Nf3 {[%clk 0:02:56]} 4... Bd6 {[%clk 0:02:48.3]} 5. d4 {[%clk 0:02:54.7]}
5... f6 {[%clk 0:02:44.1]} 6. Bc4 {[%clk 0:02:53.5]} 6... Nc6 {[%clk 0:02:40.2]}
7. O-O {[%clk 0:02:47.2]} 7... Na5 {[%clk 0:02:34.8]} 8. Bxg8 {[%clk 0:02:45.2]}
8... Rxg8 {[%clk 0:02:33.7]} 9. a3 {[%clk 0:02:41.5]} 9... c6 {[%clk 0:02:26.8]}
10. e5 {[%clk 0:02:35.4]} 10... fxe5 {[%clk 0:02:26.3]} 11. dxe5 {[%clk
0:02:36.3]} 11... Bc5+ {[%clk 0:02:24.2]} 12. Kh1 {[%clk 0:02:31.4]} 12... Rf8
{[%clk 0:02:23.2]} 13. Nd4 {[%clk 0:02:15.9]} 13... Bxd4 {[%clk 0:02:21.6]} 14.
Qxd4 {[%clk 0:02:16.8]} 14... g5 {[%clk 0:02:08.8]} 15. Ne4 {[%clk 0:02:15.1]}
15... h6 {[%clk 0:02:06.7]} 16. Nd6+ {[%clk 0:02:14.5]} 16... Ke7 {[%clk
0:02:03.8]} 17. Bd2 {[%clk 0:02:09.3]} 17... b6 {[%clk 0:01:59.5]} 18. Bxa5
{[%clk 0:02:05.2]} 18... bxa5 {[%clk 0:01:59]} 19. Qc5 {[%clk 0:02:02.6]} 19...
Ke6 {[%clk 0:01:53.9]} 20. Nxc8 {[%clk 0:01:51.3]} 20... Rxc8 {[%clk 0:01:52.3]}
21. Qd6+ {[%clk 0:01:50.9]} 21... Kf5 {[%clk 0:01:47.3]} 22. Qxh6 {[%clk
0:01:45.4]} 22... Kxe5 {[%clk 0:01:43.9]} 23. Rfe1+ {[%clk 0:01:37.4]} 23... Kd5
{[%clk 0:01:41.5]} 24. Rad1+ {[%clk 0:01:35.2]} 24... Kc5 {[%clk 0:01:40.9]} 25.
b4+ {[%clk 0:01:26.6]} 25... axb4 {[%clk 0:01:40.1]} 26. axb4+ {[%clk
0:01:27.5]} 26... Kxb4 {[%clk 0:01:39.9]} 27. Qd6+ {[%clk 0:01:26.6]} 27... Kb5
{[%clk 0:01:38.8]} 28. Rb1+ {[%clk 0:01:22.9]} 28... Ka6 {[%clk 0:01:35]} 29.
Qd3+ {[%clk 0:01:13.1]} 29... Ka5 {[%clk 0:01:33.9]} 30. Qa3# {[%clk 0:01:08.8]}
1-0

[Event "Betsys MČR v online bleskovém šachu 2021"]
[Site "Chess.com"]
[Date "2021.04.17"]
[Round "3"]
[White "Devasales"]
[Black "Kijonker"]
[Result "1-0"]
[WhiteElo "1544"]
[BlackElo "1514"]
[TimeControl "180+1"]
[EndTime "9:24:44 PDT"]
[Termination "Uživatel Devasales zvítězil matem"]

1. e4 {[%clk 0:03:00.9]} 1... e6 {[%clk 0:02:58.6]} 2. d4 {[%clk 0:02:59]} 2...
d5 {[%clk 0:02:55.6]} 3. e5 {[%clk 0:02:58.9]} 3... c5 {[%clk 0:02:55.5]} 4. c3
{[%clk 0:02:59]} 4... Nc6 {[%clk 0:02:55.3]} 5. Nf3 {[%clk 0:02:58.4]} 5... Qb6
{[%clk 0:02:55.2]} 6. b3 {[%clk 0:02:53.7]} 6... cxd4 {[%clk 0:02:48.6]} 7. cxd4
{[%clk 0:02:53.2]} 7... Bb4+ {[%clk 0:02:47.6]} 8. Bd2 {[%clk 0:02:52.5]} 8...
Bxd2+ {[%clk 0:02:46.7]} 9. Qxd2 {[%clk 0:02:50.9]} 9... Nge7 {[%clk 0:02:46]}
10. Nc3 {[%clk 0:02:47.9]} 10... a6 {[%clk 0:02:39]} 11. g4 {[%clk 0:02:37.5]}
11... Bd7 {[%clk 0:02:32.7]} 12. h3 {[%clk 0:02:36]} 12... h6 {[%clk 0:02:29.3]}
13. Rc1 {[%clk 0:02:28.8]} 13... Nb4 {[%clk 0:02:22.2]} 14. Na4 {[%clk
0:02:18.2]} 14... Bxa4 {[%clk 0:02:19.8]} 15. bxa4 {[%clk 0:02:17]} 15... Nxa2
{[%clk 0:02:11.1]} 16. Qxa2 {[%clk 0:02:09.6]} 16... O-O {[%clk 0:02:06.3]} 17.
Be2 {[%clk 0:02:07.6]} 17... Qb4+ {[%clk 0:01:51.4]} 18. Qd2 {[%clk 0:02:05.2]}
18... Qxa4 {[%clk 0:01:51.2]} 19. O-O {[%clk 0:02:04.4]} 19... Rac8 {[%clk
0:01:45.7]} 20. Bd3 {[%clk 0:01:46.9]} 20... Nc6 {[%clk 0:01:38.9]} 21. Qe3
{[%clk 0:01:34.9]} 21... Nb4 {[%clk 0:01:32.4]} 22. Bb1 {[%clk 0:01:26.7]} 22...
Nc2 {[%clk 0:01:01]} 23. Qd3 {[%clk 0:01:17.4]} 23... Nb4 {[%clk 0:00:58.8]} 24.
Qh7# {[%clk 0:01:16.6]} 1-0

[Event "Betsys MČR v online bleskovém šachu 2021"]
[Site "Chess.com"]
[Date "2021.04.17"]
[Round "3"]
[White "RousekJan"]
[Black "OndrejBorkovec"]
[Result "1-0"]
[WhiteElo "1792"]
[BlackElo "1504"]
[TimeControl "180+1"]
[EndTime "9:24:47 PDT"]
[Termination "Uživatel RousekJan zvítězil po vzdání soupeře"]

1. e4 {[%clk 0:03:00.9]} 1... e6 {[%clk 0:03:00]} 2. b3 {[%clk 0:02:54.3]} 2...
d5 {[%clk 0:02:59.3]} 3. exd5 {[%clk 0:02:51.2]} 3... exd5 {[%clk 0:03:00.2]} 4.
Bb2 {[%clk 0:02:50.9]} 4... Nf6 {[%clk 0:03:00.4]} 5. Nf3 {[%clk 0:02:50.9]}
5... Bd6 {[%clk 0:03:00]} 6. d3 {[%clk 0:02:51]} 6... O-O {[%clk 0:02:59.8]} 7.
Nbd2 {[%clk 0:02:50.9]} 7... Re8+ {[%clk 0:02:59.8]} 8. Be2 {[%clk 0:02:51.4]}
8... Bg4 {[%clk 0:02:59.5]} 9. O-O {[%clk 0:02:48.9]} 9... c6 {[%clk 0:02:59.3]}
10. h3 {[%clk 0:02:49]} 10... Bh5 {[%clk 0:02:59]} 11. Kh1 {[%clk 0:02:44.2]}
11... Nbd7 {[%clk 0:02:58.1]} 12. Re1 {[%clk 0:02:37.4]} 12... Qb6 {[%clk
0:02:56.5]} 13. Bd4 {[%clk 0:02:30.1]} 13... Qc7 {[%clk 0:02:55.2]} 14. Ng5
{[%clk 0:02:24.1]} 14... Bxe2 {[%clk 0:02:53.9]} 15. Rxe2 {[%clk 0:02:25]} 15...
h6 {[%clk 0:02:52.1]} 16. Ngf3 {[%clk 0:02:15.2]} 16... c5 {[%clk 0:02:43.9]}
17. Bb2 {[%clk 0:02:09.7]} 17... d4 {[%clk 0:02:43.2]} 18. c3 {[%clk 0:02:04.3]}
18... dxc3 {[%clk 0:02:41.8]} 19. Bxc3 {[%clk 0:02:03.6]} 19... b6 {[%clk
0:02:41.9]} 20. Rxe8+ {[%clk 0:01:57.8]} 20... Rxe8 {[%clk 0:02:41.2]} 21. Qf1
{[%clk 0:01:58.4]} 21... Be5 {[%clk 0:02:38.3]} 22. Nxe5 {[%clk 0:01:54.9]}
22... Nxe5 {[%clk 0:02:38]} 23. Re1 {[%clk 0:01:51.6]} 23... Nfd7 {[%clk
0:02:28]} 24. f4 {[%clk 0:01:50.7]} 24... f6 {[%clk 0:02:02.7]} 25. fxe5 {[%clk
0:01:50.1]} 25... Nxe5 {[%clk 0:02:02.7]} 26. Bxe5 {[%clk 0:01:49.9]} 26... Rxe5
{[%clk 0:02:02.4]} 27. Nc4 {[%clk 0:01:23.5]} 27... Rd5 {[%clk 0:01:54.1]} 28.
Qe2 {[%clk 0:01:08.3]} 28... Qd7 {[%clk 0:01:49.9]} 29. Qe8+ {[%clk 0:01:04.9]}
29... Qxe8 {[%clk 0:01:49.6]} 30. Rxe8+ {[%clk 0:01:05.7]} 30... Kf7 {[%clk
0:01:49.9]} 31. Re3 {[%clk 0:01:06.2]} 31... Rd4 {[%clk 0:01:49.4]} 32. Kg1
{[%clk 0:01:03.4]} 32... g5 {[%clk 0:01:48.2]} 33. Kf2 {[%clk 0:01:03.2]} 33...
f5 {[%clk 0:01:48.2]} 34. Re2 {[%clk 0:00:54.6]} 34... Rxd3 {[%clk 0:01:47]} 35.
Ne5+ {[%clk 0:00:54.6]} 1-0

[Event "Betsys MČR v online bleskovém šachu 2021"]
[Site "Chess.com"]
[Date "2021.04.17"]
[Round "3"]
[White "Patrik_Kohm"]
[Black "sipos88"]
[Result "0-1"]
[WhiteElo "1369"]
[BlackElo "1869"]
[TimeControl "180+1"]
[EndTime "9:24:48 PDT"]
[Termination "Uživatel sipos88 zvítězil po vzdání soupeře"]

1. e4 {[%clk 0:03:00.9]} 1... e5 {[%clk 0:02:58.3]} 2. Nf3 {[%clk 0:03:00.8]}
2... Nc6 {[%clk 0:02:57.6]} 3. Bc4 {[%clk 0:03:00.4]} 3... Bc5 {[%clk
0:02:57.5]} 4. b4 {[%clk 0:02:59.5]} 4... Bxb4 {[%clk 0:02:55.7]} 5. c3 {[%clk
0:02:59.5]} 5... Be7 {[%clk 0:02:55.7]} 6. d4 {[%clk 0:02:59.2]} 6... exd4
{[%clk 0:02:48.5]} 7. cxd4 {[%clk 0:02:57.7]} 7... d6 {[%clk 0:02:48.8]} 8. Qb3
{[%clk 0:02:49.9]} 8... Na5 {[%clk 0:02:40.3]} 9. Bxf7+ {[%clk 0:02:34.6]} 9...
Kf8 {[%clk 0:02:40]} 10. Qd5 {[%clk 0:02:34]} 10... c6 {[%clk 0:02:38.2]} 11.
Qh5 {[%clk 0:02:33.7]} 11... Nf6 {[%clk 0:02:36.8]} 12. Qh4 {[%clk 0:02:13.5]}
12... Kxf7 {[%clk 0:02:35.2]} 13. Ng5+ {[%clk 0:02:12.5]} 13... Kf8 {[%clk
0:02:34.7]} 14. Qf4 {[%clk 0:02:12.1]} 14... h6 {[%clk 0:02:22.4]} 15. Nf3
{[%clk 0:01:57.9]} 15... Ke8 {[%clk 0:02:17.5]} 16. O-O {[%clk 0:01:54.3]} 16...
Rf8 {[%clk 0:02:14.9]} 17. Qe3 {[%clk 0:01:50]} 17... Bg4 {[%clk 0:02:07.8]} 18.
h3 {[%clk 0:01:48.3]} 18... Bxf3 {[%clk 0:02:07.4]} 19. Qxf3 {[%clk 0:01:48.7]}
19... Qd7 {[%clk 0:01:57.2]} 20. Rd1 {[%clk 0:01:41]} 20... Kf7 {[%clk
0:01:52.5]} 21. e5 {[%clk 0:01:39.8]} 21... Kg8 {[%clk 0:01:51.8]} 22. exf6
{[%clk 0:01:38.6]} 22... Rxf6 {[%clk 0:01:51.4]} 23. Qg3 {[%clk 0:01:37.6]}
23... Raf8 {[%clk 0:01:49.4]} 24. Be3 {[%clk 0:01:36.8]} 24... Nc4 {[%clk
0:01:47.4]} 25. Nc3 {[%clk 0:01:34]} 25... Nxe3 {[%clk 0:01:45.7]} 26. fxe3
{[%clk 0:01:34.9]} 26... d5 {[%clk 0:01:42.2]} 27. Ne2 {[%clk 0:01:31.2]} 27...
Bd6 {[%clk 0:01:40.5]} 28. Qh4 {[%clk 0:01:26.7]} 28... Qe7 {[%clk 0:01:35.9]}
29. Rd3 {[%clk 0:01:06.5]} 29... Rf1+ {[%clk 0:01:34]} 0-1

[Event "Betsys MČR v online bleskovém šachu 2021"]
[Site "Chess.com"]
[Date "2021.04.17"]
[Round "3"]
[White "berny643"]
[Black "nw_tynka"]
[Result "1-0"]
[WhiteElo "2542"]
[BlackElo "2208"]
[TimeControl "180+1"]
[EndTime "9:24:51 PDT"]
[Termination "Uživatel berny643 zvítězil po vzdání soupeře"]

1. d4 {[%clk 0:02:52.3]} 1... Nf6 {[%clk 0:02:59.4]} 2. c4 {[%clk 0:02:52.7]}
2... g6 {[%clk 0:02:59.1]} 3. Nc3 {[%clk 0:02:53.1]} 3... d5 {[%clk 0:02:58.7]}
4. Bg5 {[%clk 0:02:45.2]} 4... Ne4 {[%clk 0:02:57.1]} 5. Bh4 {[%clk 0:02:43.4]}
5... Nxc3 {[%clk 0:02:54.2]} 6. bxc3 {[%clk 0:02:43.1]} 6... Bg7 {[%clk
0:02:51.8]} 7. e3 {[%clk 0:02:42]} 7... c5 {[%clk 0:02:41.5]} 8. Nf3 {[%clk
0:02:39.3]} 8... O-O {[%clk 0:02:39.5]} 9. cxd5 {[%clk 0:02:35.5]} 9... cxd4
{[%clk 0:02:37.5]} 10. cxd4 {[%clk 0:02:32.3]} 10... Qxd5 {[%clk 0:01:41.9]} 11.
Bxe7 {[%clk 0:02:30.2]} 11... Re8 {[%clk 0:01:41.6]} 12. Bh4 {[%clk 0:02:27.2]}
12... Nc6 {[%clk 0:01:41]} 13. Be2 {[%clk 0:02:26.5]} 13... Bf5 {[%clk
0:01:29.7]} 14. O-O {[%clk 0:02:25.1]} 14... Nb4 {[%clk 0:01:14.2]} 15. Qa4
{[%clk 0:02:14.2]} 15... a5 {[%clk 0:00:48.5]} 16. Rfc1 {[%clk 0:02:08]} 16...
Bd7 {[%clk 0:00:20]} 17. Qa3 {[%clk 0:02:06.8]} 17... b6 {[%clk 0:00:18.6]} 18.
Qb2 {[%clk 0:02:06.2]} 18... Qe4 {[%clk 0:00:12]} 19. Bc4 {[%clk 0:02:02.6]}
19... Bg4 {[%clk 0:00:09.5]} 20. Bxf7+ {[%clk 0:02:01.6]} 20... Kxf7 {[%clk
0:00:08.5]} 21. Ng5+ {[%clk 0:02:00.7]} 1-0

[Event "Betsys MČR v online bleskovém šachu 2021"]
[Site "Chess.com"]
[Date "2021.04.17"]
[Round "3"]
[White "jachymcarostrelec4"]
[Black "TomasOrnet1"]
[Result "1-0"]
[WhiteElo "1896"]
[BlackElo "1506"]
[TimeControl "180+1"]
[EndTime "9:24:55 PDT"]
[Termination "Uživatel jachymcarostrelec4 zvítězil po vzdání soupeře"]

1. d4 {[%clk 0:03:00.9]} 1... d5 {[%clk 0:02:59.2]} 2. c4 {[%clk 0:03:00.4]}
2... c6 {[%clk 0:02:58.5]} 3. Nc3 {[%clk 0:02:59.2]} 3... e6 {[%clk 0:02:57.8]}
4. e4 {[%clk 0:02:57.3]} 4... dxe4 {[%clk 0:02:51.4]} 5. Nxe4 {[%clk 0:02:56.7]}
5... Nf6 {[%clk 0:02:51.4]} 6. Nc3 {[%clk 0:02:50.9]} 6... c5 {[%clk 0:02:45.8]}
7. Nf3 {[%clk 0:02:42.8]} 7... cxd4 {[%clk 0:02:43.5]} 8. Qxd4 {[%clk
0:02:43.7]} 8... Qxd4 {[%clk 0:02:42]} 9. Nxd4 {[%clk 0:02:44.6]} 9... Bc5
{[%clk 0:02:38]} 10. Ndb5 {[%clk 0:02:43.8]} 10... Na6 {[%clk 0:02:37.8]} 11.
Be3 {[%clk 0:02:37]} 11... Bxe3 {[%clk 0:02:35]} 12. fxe3 {[%clk 0:02:37.9]}
12... O-O {[%clk 0:02:34.8]} 13. g3 {[%clk 0:02:35.7]} 13... Bd7 {[%clk
0:02:30.6]} 14. Bg2 {[%clk 0:02:35.5]} 14... Bc6 {[%clk 0:02:24.2]} 15. Bxc6
{[%clk 0:02:28.4]} 15... bxc6 {[%clk 0:02:20.5]} 16. Nd4 {[%clk 0:02:29.3]}
16... Nb4 {[%clk 0:02:18.8]} 17. O-O-O {[%clk 0:02:25.7]} 17... c5 {[%clk
0:02:17]} 18. Nb3 {[%clk 0:02:20.8]} 18... Rfd8 {[%clk 0:02:13.3]} 19. a3 {[%clk
0:02:18.1]} 19... Nd3+ {[%clk 0:02:07.9]} 20. Kc2 {[%clk 0:02:17.1]} 20... Nf2
{[%clk 0:02:07.3]} 21. Rxd8+ {[%clk 0:02:14.4]} 21... Rxd8 {[%clk 0:02:05.8]}
22. Rf1 {[%clk 0:02:12.4]} 22... N2e4 {[%clk 0:02:04.2]} 23. Na4 {[%clk
0:01:55.9]} 23... Ng4 {[%clk 0:01:43.3]} 24. Re1 {[%clk 0:01:47.7]} 24... Nxh2
{[%clk 0:01:42.1]} 25. Naxc5 {[%clk 0:01:45.3]} 25... Nxc5 {[%clk 0:01:40.5]}
26. Nxc5 {[%clk 0:01:46.1]} 26... Ng4 {[%clk 0:01:39.4]} 27. e4 {[%clk
0:01:38.5]} 27... Ne5 {[%clk 0:01:37.9]} 28. Kc3 {[%clk 0:01:31.6]} 28... a5
{[%clk 0:01:36.5]} 29. b4 {[%clk 0:01:25.4]} 29... axb4+ {[%clk 0:01:34.7]} 30.
axb4 {[%clk 0:01:26.3]} 30... h6 {[%clk 0:01:32.8]} 31. b5 {[%clk 0:01:18.5]}
31... Rc8 {[%clk 0:01:30.2]} 32. Kb4 {[%clk 0:01:14.4]} 32... Rxc5 {[%clk
0:01:26.3]} 33. Kxc5 {[%clk 0:01:13.9]} 33... Nd3+ {[%clk 0:01:25.5]} 34. Kd6
{[%clk 0:01:13.3]} 34... Nxe1 {[%clk 0:01:25.4]} 35. b6 {[%clk 0:01:12.7]} 1-0

[Event "Betsys MČR v online bleskovém šachu 2021"]
[Site "Chess.com"]
[Date "2021.04.17"]
[Round "3"]
[White "KatkaZ"]
[Black "svTomas"]
[Result "1-0"]
[WhiteElo "1874"]
[BlackElo "1412"]
[TimeControl "180+1"]
[EndTime "9:24:57 PDT"]
[Termination "Uživatel KatkaZ zvítězil po vzdání soupeře"]

1. Nf3 {[%clk 0:03:00.9]} 1... Nf6 {[%clk 0:02:59]} 2. g3 {[%clk 0:03:00.4]}
2... e6 {[%clk 0:02:57.1]} 3. Bg2 {[%clk 0:03:00.3]} 3... Be7 {[%clk 0:02:53.8]}
4. d3 {[%clk 0:03:00.2]} 4... Nc6 {[%clk 0:02:47.6]} 5. Nbd2 {[%clk 0:02:59.8]}
5... b6 {[%clk 0:02:46.6]} 6. O-O {[%clk 0:02:58.8]} 6... Bb7 {[%clk 0:02:46.1]}
7. c3 {[%clk 0:02:58.3]} 7... h5 {[%clk 0:02:43.8]} 8. e4 {[%clk 0:02:57.2]}
8... Ng4 {[%clk 0:02:43.1]} 9. h3 {[%clk 0:02:55.4]} 9... Nf6 {[%clk 0:02:42.5]}
10. a3 {[%clk 0:02:40.1]} 10... d5 {[%clk 0:02:14.6]} 11. Qe2 {[%clk 0:02:35.4]}
11... dxe4 {[%clk 0:02:03.6]} 12. dxe4 {[%clk 0:02:34.7]} 12... e5 {[%clk
0:01:56.3]} 13. Nc4 {[%clk 0:02:27.6]} 13... Bd6 {[%clk 0:01:46.6]} 14. Nxd6+
{[%clk 0:02:26]} 14... cxd6 {[%clk 0:01:45.6]} 15. Bg5 {[%clk 0:02:24]} 15...
Qe7 {[%clk 0:01:43.4]} 16. Nh4 {[%clk 0:02:20.9]} 16... O-O-O {[%clk 0:01:34.6]}
17. Rfd1 {[%clk 0:02:13]} 17... Kb8 {[%clk 0:01:15.9]} 18. Nf5 {[%clk
0:02:10.3]} 18... Qf8 {[%clk 0:01:15.5]} 19. Rd2 {[%clk 0:01:56.6]} 19... Bc8
{[%clk 0:01:15.1]} 20. Rad1 {[%clk 0:01:52.5]} 20... Bxf5 {[%clk 0:01:14.4]} 21.
exf5 {[%clk 0:01:52]} 21... Ne7 {[%clk 0:01:00.2]} 22. Rxd6 {[%clk 0:01:23.1]}
22... Nxf5 {[%clk 0:00:58.1]} 23. Rxd8+ {[%clk 0:01:21.7]} 1-0